Cogmind - Beta 16.1 *** ADVENTURER MODE // 2026.02.15 @ 15:58:25 Player: ME Result: Destroyed by B-75 Beast with Heavy Plasma Cannon Performance ------------- Evolutions (2) 1000 Regions Visited (6) 1200 Robots Destroyed (73) 365 Value Destroyed (3345) 3345 Prototype IDs (3) 60 Alien Tech Used (0) 0 Bonus (1383) 1383 TOTAL SCORE: 7353 Bonus ------- High Alert Combat Kills 260 Follower Combat Kills 123 Entered Garrisons 200 Used RIF Installer 500 Aligned with FarCom 300 Cogmind --------- Core Integrity 0/550 Matter 300/300 Energy 61/100 System Corruption 2% Temperature Cool (12) Movement Treading (160) Location -8/Garrison Parts ------- > --- POWER (1) -------- (None) > --- PROPULSION (3) --- Improved Medium Treads Improved Medium Treads > --- UTILITY (4) ------ Coolant Injector Small Storage Unit Melee Analysis Suite Layered Medium Armor Plating > --- WEAPON (3) ------- Heavy Plasma Cannon Longsword +1 > --- INVENTORY (8) ---- Improved Heat Sink Improved Signal Interpreter Hacking Suite System Shield Relay Coupler [Brawler] (29) Remote Datajack Peak State ------------ > --- POWER ------------ Light Angular Momentum Engine > --- PROPULSION ------- Aluminum Leg Aluminum Leg Carbon-fiber Leg > --- UTILITY ---------- Improved Heat Sink Small Storage Unit Core Analyzer Medium Armor Plating > --- WEAPON ----------- Heavy Laser Ion Cannon Longsword +1 > --- INVENTORY -------- Light Nuclear Core Improved Signal Interpreter Terrain Scanner Heavy Armor Plating Hacking Suite System Shield Datajack [Rating: 37] Favorites ----------- Power Light Nuclear Core Engine Ion Engine Power Core Light Nuclear Core Propulsion Aluminum Leg Treads Light Treads Leg Aluminum Leg Utility Small Storage Unit Device Terrain Scanner Storage Small Storage Unit Processor Core Analyzer Hackware Relay Coupler [Sentry] Protection Medium Armor Plating Weapon Longsword +1 Energy Gun Heavy Laser Energy Cannon Ion Cannon Ballistic Gun Light Assault Rifle Special Weapon Remote Datajack Slashing Weapon Longsword +1 Special Melee Weapon Datajack Build | -11 -10 -10 -10 -9 -8 -8 ------- Run | Yrd Mat Min Exi Min Mat Gar Slots Evolved 4 | . . . . . 4 . Power . | . . . . . . . Propulsion 1 | . . . . . 1 . Utility 2 | . . . . . 2 . Weapon 1 | . . . . . 1 . Parts Attached 46 | 6 3 . 1 2 12 22 Power 6 | 1 . . . . 3 2 Engine 3 | 1 . . . . 2 . Core 3 | . . . . . 1 2 Reactor . | . . . . . . . Propulsion 16 | 2 . . . 2 4 8 Treads 5 | . . . . . . 5 Leg 11 | 2 . . . 2 4 3 Wheel . | . . . . . . . Hover . | . . . . . . . Flight . | . . . . . . . Utility 12 | 1 2 . . . 3 6 Device 4 | . 1 . . . 1 2 Storage 1 | 1 . . . . . . Processor 2 | . . . . . . 2 Hackware 1 | . . . . . . 1 Protection 4 | . 1 . . . 2 1 Artifact . | . . . . . . . Weapon 12 | 2 1 . 1 . 2 6 Energy Gun 4 | . . . . . 1 3 Energy Cannon 2 | . . . . . 1 1 Ballistic Gun 2 | 2 . . . . . . Ballistic Cannon . | . . . . . . . Launcher . | . . . . . . . Special Weapon 1 | . . . . . . 1 Impact Weapon . | . . . . . . . Slashing Weapon 2 | . 1 . 1 . . . Piercing Weapon . | . . . . . . . Special Melee Weapon 1 | . . . . . . 1 Unidentified Prototypes 1 | . . . 1 . . . Corrupted Parts 1 | . . . . . . 1 System Corruption 2 | . . . . . . 2 Parts Lost 12 | . . . . . . 12 Power 2 | . . . . . . 2 Propulsion 4 | . . . . . . 4 Utility 2 | . . . . . . 2 Weapon 4 | . . . . . . 4 Highest Loss Streak 5 | . . . . . . 5 To Critical Strikes . | . . . . . . . Average Backups 6 | . . 3 3 6 7 7 Power . | . . . . . . . Propulsion . | . . . . 2 . . Utility 4 | . . 1 1 1 5 5 Weapon . | . . 1 1 1 . . Tool/Special . | . . . . . . . Unused Backups 10 | . . . . . 3 7 Power 1 | . . . . . 1 . Propulsion . | . . . . . . . Utility 9 | . . . . . 2 7 Weapon . | . . . . . . . Tool/Special . | . . . . . . . Average Slot Usage (%) 96 | . 98 100 100 100 99 90 Engine 6 | . 14 14 14 14 5 2 Core 3 | . . . . . 3 6 Treads 6 | . . . . . . 17 Leg 20 | . 28 28 28 28 26 8 Device 11 | . 6 14 14 14 17 7 Storage 10 | . 14 14 14 14 9 9 Processor 5 | . . . . . . 13 Protection 4 | . 6 . . . 8 2 Energy Gun 5 | . . . . . 8 7 Energy Cannon 4 | . . . . . 8 4 Ballistic Gun 6 | . 25 14 14 14 . . Slashing Weapon 8 | . 2 14 14 14 9 7 Peak Build Rating 37 | 6 7 7 14 14 34 37 Average Rating 24 | 4 6 7 10 14 31 30 On Entrance 11 | . 6 7 7 14 14 34 Avg Prop Armor Cover (%) . | . . . . . . . Naked Turns . | . . . . . . . Heaviest Build 36 | 13 16 14 15 15 36 36 Greatest Support 60 | 20 20 20 20 20 35 60 Greatest Overweight (x) 5 | 1 . . . . 1 5 Average Overweight (x) . | . . . . . . . Largest Inventory Capacity 8 | 8 8 8 8 8 8 8 Average Capacity 7 | 6 8 8 8 8 8 8 Most Carried 8 | . 3 3 4 7 8 8 Average Carried 6 | . . 3 3 6 7 7 Final Capacity 8 | 8 8 8 8 8 8 8 Final Carried 8 | . 3 3 4 7 8 6 Class Distribution -------------------- 35% | Scavenger-Assassin 30% | Scavenger-Mutant 22% | Mutant 10% | Assassin Dominant Class ---------------- Mutant | -10/Materials Mutant | -10/Mines Mutant | -10/Exiles Assassin | -9/Mines Scavenger-Assassin | -8/Materials Scavenger-Mutant | -8/Garrison Resources | -11 -10 -10 -10 -9 -8 -8 ----------- Run | Yrd Mat Min Exi Min Mat Gar Matter Collected 1047 | 243 239 . . 30 160 375 Remotely . | . . . . . . . Salvage Created 2786 | . 335 . . 309 817 1325 Parts 164 | . 29 . . 17 50 68 Haulers Intercepted 3 | . 1 . . . 2 . Recyclers Shooed 1 | . . . . . 1 . Parts Field Recycled . | . . . . . . . Retrieved Matter . | . . . . . . . Parts Self-Destructed . | . . . . . . . Prevented . | . . . . . . . Parts Restored . | . . . . . . . Kills | -11 -10 -10 -10 -9 -8 -8 ------- Run | Yrd Mat Min Exi Min Mat Gar Combat Hostiles Destroyed 63 | . 11 . . 9 19 24 Melee 46 | . 3 . . 9 15 19 Guns 10 | . 8 . . . 1 1 Cannons 7 | . . . . . 3 4 Classes Destroyed 13 | . 4 . . 1 3 5 Worker 1 | . . . . 1 . . Hauler 3 | . 1 . . . 2 . Recycler 1 | . . . . . 1 . Operator 1 | . . . . . 1 . Watcher 4 | . 3 . . . 1 . Swarmer 24 | . 9 . . 3 12 . Grunt 24 | . 2 . . 6 2 14 Brawler 1 | . . . . . . 1 Duelist 1 | . . . . . . 1 Sentry 10 | . . . . . 5 5 Hunter 1 | . . . . . . 1 Programmer 1 | . . . . . . 1 Behemoth 1 | . . . . . . 1 Best Kill Streak 8 | . 4 . . 8 6 4 Combat Bots Only 8 | . 3 . . 8 6 4 Max Kills in Single Turn 1 | . 1 . . 1 1 1 Gunslinging . | . . . . . . . Exploded . | . . . . . . . Melee 1 | . 1 . . 1 1 1 Uniques/NPCs Destroyed . | . . . . . . . Combat | -11 -10 -10 -10 -9 -8 -8 -------- Run | Yrd Mat Min Exi Min Mat Gar Hostile Shots Fired 297 | . 47 . . 15 79 156 Missed 90 | . 10 . . 6 30 44 Hits 207 | . 37 . . 9 49 112 Melee 2 | . . . . . . 2 Projectile 205 | . 37 . . 9 49 110 Critical Strikes 13 | . . . . . . 13 Damage Taken 2449 | . 229 . . 72 394 1754 Core 615 | . 20 . . 21 79 495 Absorbed by Shields . | . . . . . . . Ignored by Resistances 711 | . 76 . . 23 120 492 Regen/Repaired (Parts) 100 | . . . . . 100 . Core Remaining (%) 91 | 100 . . . 83 . . Volleys Fired 93 | . 48 . . . 13 32 Largest 3 | . 2 . . . 2 3 Hottest 180 | . 40 . . . 129 180 Shots Fired 159 | . 96 . . . 18 45 Gun 129 | . 96 . . . 5 28 Cannon 24 | . . . . . 13 11 Launcher . | . . . . . . . Special 6 | . . . . . . 6 Kinetic 96 | . 96 . . . . . Thermal 55 | . . . . . 18 37 Explosive . | . . . . . . . Electromagnetic 2 | . . . . . . 2 Robot Hit Streak 18 | . 18 . . . 10 12 Robot Miss Streak 3 | . 3 . . . 3 1 Penetration Max . | . . . . . . . Secondary Targets 2 | . 2 . . . . . Max Gunslinging Chain 1 | . 1 . . . . . Shots Hit Robots 210 | . 71 . . 13 45 81 Core Hits 84 | . 22 . . 8 23 31 Critical Kills . | . . . . . . . Critical Parts Destroyed . | . . . . . . . Critical Strikes 7 | . . . . . 1 6 Sever 7 | . . . . . 1 6 Melee Attacks 171 | . 5 . . 16 40 110 Impact . | . . . . . . . Slashing 171 | . 5 . . 16 40 110 Piercing . | . . . . . . . Sneak Attacks 7 | . . . . 2 5 . Combat Hostiles 1 | . . . . . 1 . Follow-up Attacks . | . . . . . . . Damage Inflicted 6242 | . 798 . . 660 2000 2784 Guns 1072 | . 706 . . . 58 308 Cannons 342 | . . . . . 160 182 Explosions . | . . . . . . . Melee 4828 | . 92 . . 660 1782 2294 Ramming . | . . . . . . . Kinetic 706 | . 706 . . . . . Thermal 688 | . . . . . 218 470 Explosive . | . . . . . . . Electromagnetic 20 | . . . . . . 20 Impact . | . . . . . . . Slashing 4828 | . 92 . . 660 1782 2294 Piercing . | . . . . . . . Highest Corruption 2 | . 1 1 1 1 . 2 Average Corruption 1 | . 1 1 1 1 . 2 Corruption Purged . | . . . . . . . Corruption Blocked . | . . . . . . . Effects 9 | . 1 2 1 3 . 2 Message Errors 1 | . . . . 1 . . Heat Flow Errors 2 | . . . . 1 . 1 Energy Discharges 2 | . . . 1 1 . . Parts Fused 1 | . . 1 . . . . Data Loss (minor) 2 | . 1 . . . . 1 Data Loss (major) 1 | . . 1 . . . . Overload Shots . | . . . . . . . Overflow Damage 428 | . . . . 121 230 77 Projectiles 6 | . . . . . 6 . Explosions . | . . . . . . . Melee 422 | . . . . 121 224 77 Knockbacks . | . . . . . . . Impact . | . . . . . . . Kinetic . | . . . . . . . Secondary . | . . . . . . . Self-Inflicted Damage . | . . . . . . . Shots . | . . . . . . . Rammed . | . . . . . . . Targets Rammed . | . . . . . . . Kicked . | . . . . . . . Crushed . | . . . . . . . Highest Temperature 450 | . 14 . . 157 57 450 Average Temperature 79 | . 6 . . 79 25 160 Received Heat Transfer 954 | . 36 . . 45 99 774 Siege Activations . | . . . . . . . Martial Activations . | . . . . . . . Shielding Activations . | . . . . . . . Robots Disrupted . | . . . . . . . Combat Hostiles . | . . . . . . . Robots Corrupted . | . . . . . . . Combat Hostiles . | . . . . . . . Parts Fried . | . . . . . . . Impact Corruptions . | . . . . . . . Robots Melted . | . . . . . . . Combat Hostiles . | . . . . . . . Parts Melted 2 | . . . . 1 1 . Heat Transferred 1295 | . . . . . 370 925 Parts Sabotaged . | . . . . . . . Parts Stolen . | . . . . . . . Parts Stripped . | . . . . . . . Power Chain Reactions . | . . . . . . . Alert | -11 -10 -10 -10 -9 -8 -8 ------- Run | Yrd Mat Min Exi Min Mat Gar Maximum Alert Level 4 | . . . . 1 1 4 Low Security (%) 65 | 100 100 100 . 96 94 18 Level 1 9 | . . . . 3 5 19 Level 2 4 | . . . . . . 10 Level 3 13 | . . . . . . 34 Level 4 6 | . . . . . . 17 Level 5 . | . . . . . . . High Security . | . . . . . . . Max Security . | . . . . . . . Peak Influence 1463 | . 67 16 . 202 246 1463 Initial 16 | . . 16 . . 5 . Average 295 | . 15 8 . 88 57 683 Influence Increases 2788 | . 282 . . 267 666 1573 Destroy 0b10 Robot/C 1360 | . 220 . . 240 380 520 Destroy 0b10 Robot/NC 55 | . 20 . . 5 25 5 Destroy Leader 164 | . 38 . . 20 76 30 Allied During Kill 3 | . . . . 2 . 1 Successful Hack 68 | . 4 . . . 34 30 Disable Machine 36 | . . . . . 9 27 Anti-Garrison Action 800 | . . . . . . 800 Destroy Structure 167 | . . . . . 7 160 Lose Combat Pursuer 135 | . . . . . 135 . Influence Decreases 1375 | . 232 50 . 250 683 160 Entered New Map 46 | . . 34 . . 12 . Time Decay 1169 | . 232 16 . 250 671 . Lost Part 120 | . . . . . . 120 Lost Ally 40 | . . . . . . 40 Squads Dispatched 3 | . . . . . 3 . Investigation 2 | . . . . . 2 . Extermination . | . . . . . . . Reinforcement 1 | . . . . . 1 . Assault . | . . . . . . . Garrison . | . . . . . . . Intercept . | . . . . . . . Searches Triggered . | . . . . . . . Construction Impeded . | . . . . . . . Haulers Reinforced . | . . . . . . . Active Scanning Responses . | . . . . . . . Cargo Convoy Interrupts . | . . . . . . . Stealth | -11 -10 -10 -10 -9 -8 -8 --------- Run | Yrd Mat Min Exi Min Mat Gar Distress Signals 4 | . . . . . 4 . Communications Jammed . | . . . . . . . Distress Signals . | . . . . . . . Times Spotted 87 | . 15 . . 13 31 28 Peak Tracking Total 7 | . 3 . . 6 7 3 Tactical Retreats 4 | . . . . . 4 . Traps | -11 -10 -10 -10 -9 -8 -8 ------- Run | Yrd Mat Min Exi Min Mat Gar Traps Triggered 5 | . 2 . . . . 3 Indirectly . | . . . . . . . Trap Hack Attempts . | . . . . . . . Triggered . | . . . . . . . Disarmed . | . . . . . . . Reprogrammed . | . . . . . . . Reused . | . . . . . . . Traps Extracted . | . . . . . . . Installed . | . . . . . . . Triggered . | . . . . . . . Machines | -11 -10 -10 -10 -9 -8 -8 ---------- Run | Yrd Mat Min Exi Min Mat Gar Machines Disabled 10 | . . . . . 1 9 Max in Single Turn 1 | . . . . . 1 1 Garrison Relay 6 | . . . . . . 6 Machines Repaired . | . . . . . . . Machines Dismantled . | . . . . . . . Machines Sabotaged . | . . . . . . . Overloaded Fab Kills . | . . . . . . . Hacking | -11 -10 -10 -10 -9 -8 -8 --------- Run | Yrd Mat Min Exi Min Mat Gar Machines Accessed 17 | . 6 . . . 8 3 Terminals 13 | . 5 . . . 5 3 Fabricators . | . . . . . . . Repair Stations 2 | . . . . . 2 . Recycling Units 1 | . 1 . . . . . Scanalyzers . | . . . . . . . Garrison Access 1 | . . . . . 1 . Total Hacks 32 | . 8 . . . 20 4 Successful 19 | . 2 . . . 14 3 Failed 13 | . 6 . . . 6 1 Catastrophic 5 | . 4 . . . 1 . Database Lockouts . | . . . . . . . Manual 11 | . 5 . 1 . 5 . Terminals 22 | . 7 . . . 11 4 Fabricators . | . . . . . . . Repair Stations 7 | . . . . . 7 . Recycling Units 1 | . 1 . . . . . Scanalyzers . | . . . . . . . Garrison Access 2 | . . . . . 2 . Terminal Hacks 12 | . 1 . . . 8 3 Record 1 | . . . . . 1 . Prototype ID Bank 1 | . . . . . 1 . Open Door 1 | . . . . . . 1 Emergency Access Points 2 | . . . . . 1 1 Terminal Index 2 | . 1 . . . 1 . Repair Station Index 1 | . . . . . 1 . Alert Level 1 | . . . . . 1 . Locate Traps 2 | . . . . . 2 . Garrison Registry 1 | . . . . . . 1 Fabricator Hacks . | . . . . . . . Repair Station Hacks 4 | . . . . . 4 . Scan Component 2 | . . . . . 2 . Repair 2 | . . . . . 2 . Recycling Unit Hacks 1 | . 1 . . . . . Report Inventory 1 | . 1 . . . . . Scanalyzer . | . . . . . . . Garrison Access Hacks 2 | . . . . . 2 . Unlock Access 1 | . . . . . 1 . Coupler Status 1 | . . . . . 1 . Unauthorized Hacks . | . . . . . . . Terminals . | . . . . . . . Fabricators . | . . . . . . . Repair Stations . | . . . . . . . Recycling Units . | . . . . . . . Scanalyzers . | . . . . . . . Garrison Access . | . . . . . . . Data Cores Recovered . | . . . . . . . Used . | . . . . . . . Hacking Detections 11 | . 5 . . . 4 2 Full Trace Events 2 | . 1 . . . 1 . Feedback Events . | . . . . . . . Feedback Blocked . | . . . . . . . Robot Schematics Acquired . | . . . . . . . Robots Built . | . . . . . . . Authchips . | . . . . . . . Time . | . . . . . . . Total Robot Build Rating . | . . . . . . . Part Schematics Acquired . | . . . . . . . Parts Built . | . . . . . . . Authchips . | . . . . . . . Time . | . . . . . . . Total Part Build Rating . | . . . . . . . Part Studies Acquired . | . . . . . . . Parts Repaired 2 | . . . . . 2 . Time 51 | . . . . . 51 . Parts Recycled . | . . . . . . . Recycled Matter . | . . . . . . . Retrieved Matter . | . . . . . . . Retrieved Components . | . . . . . . . Parts Scanalyzed . | . . . . . . . Part Schematics Acquired . | . . . . . . . Parts Damaged . | . . . . . . . Bothacking | -11 -10 -10 -10 -9 -8 -8 ------------ Run | Yrd Mat Min Exi Min Mat Gar Used RIF Installer 1 | . . . . . . 1 Robots Hacked 1 | . . . . . . 1 Non-combat . | . . . . . . . Combat 1 | . . . . . . 1 Robot Hacks Applied 1 | . . . . . . 1 streamctrl_high 1 | . . . . . . 1 Relay Couplers Released 31 | . . . . . . 31 Machine Destruction 27 | . . . . . . 27 Programmers 4 | . . . . . . 4 Attached 1 | . . . . . . 1 Fabnet Peak Effective % . | . . . . . . . Robots Rewired 2 | . . . . . . 2 Allies Hacked . | . . . . . . . Hacks Repelled . | . . . . . . . Allies | -11 -10 -10 -10 -9 -8 -8 -------- Run | Yrd Mat Min Exi Min Mat Gar Total Allies 4 | . . . . 1 . 3 Largest Group 3 | . . . . 1 1 3 Highest-Rated Group 65 | . . . . 31 31 65 Highest-Rated Ally 31 | . . . . 31 31 25 Total Orders . | . . . . . . . Ally Attacks 13 | . . . . 9 . 4 Total Damage 357 | . . . . 186 . 171 Kills 5 | . . . . 3 . 2 Allies Corrupted . | . . . . . . . Allies Melted 1 | . . . . . . 1 Intel | -11 -10 -10 -10 -9 -8 -8 ------- Run | Yrd Mat Min Exi Min Mat Gar Active Infowar (turns) 3770 | . 472 51 259 610 2077 301 Terrain 3770 | . 472 51 259 610 2077 301 Robot Analysis Total . | . . . . . . . Derelict Logs Recovered 1 | . . . . 1 . . Drone Launches . | . . . . . . . Drone Recoveries . | . . . . . . . Exploration | -11 -10 -10 -10 -9 -8 -8 ------------- Run | Yrd Mat Min Exi Min Mat Gar Turns Passed 6569 | 53 1067 51 259 610 2077 2452 Spaces Moved 3769 | 39 715 43 214 428 963 1367 Core 10 | 4 . . . . . 6 Treads 921 | . . . . . . 921 Legs 2838 | 35 715 43 214 428 963 440 Wheels . | . . . . . . . Hover . | . . . . . . . Flight . | . . . . . . . Fastest Speed 50 | 50 120 120 120 120 120 120 Average Speed 131 | 114 120 120 120 120 125 148 Slowest Speed 300 | 120 120 120 120 120 190 300 Overloaded Moves . | . . . . . . . Propulsion Burnouts . | . . . . . . . Robots Hopped . | . . . . . . . Potential Cave-ins . | . . . . . . . Cave-ins Triggered . | . . . . . . . Exploration Rate (%) 56 | 3 96 14 60 74 64 87 Regions Visited 6 Branch Regions 3 Pre-discovered Areas 1 | . . . . 1 . . Known Exits Taken 1 | . . . . . 1 . Unknown Exits Taken 5 | 1 1 1 1 1 . . Scrap Searched 3 | . . . . 3 . . Spaces Dug 25 | . . . . . 5 20 Terrain Destroyed 27 | . . . . . 7 20 Melee 25 | . . . . . 5 20 Projectile 2 | . . . . . 2 . AOE . | . . . . . . . Terrain Rammed . | . . . . . . . Walls Destroyed . | . . . . . . . Machines Disabled . | . . . . . . . Actions | -11 -10 -10 -10 -9 -8 -8 --------- Run | Yrd Mat Min Exi Min Mat Gar Total 5036 | 44 826 42 215 508 1773 1628 Wait 868 | . 53 . . 59 717 39 Move 3763 | 38 714 42 213 427 962 1367 Hop . | . . . . . . . Pick Up 21 | . 3 . 1 3 9 5 Fast Attach 32 | 6 1 . . . 7 18 Attach 6 | . . . . . 3 3 Detach 2 | . . . . . . 2 Swap 29 | . 2 . 1 2 7 17 Drop 28 | . . . . 1 15 12 Fire 93 | . 48 . . . 13 32 Melee 171 | . 5 . . 16 40 110 Ram . | . . . . . . . Kick . | . . . . . . . Crush . | . . . . . . . Escape Stasis 5 | . . . . . . 5 Rewire 18 | . . . . . . 18 Trap . | . . . . . . . Miscellaneous . | . . . . . . . Route ------- -11/Scrapyard -10/Materials (discovered 5 exits: [*Mat x3] / [*Min] / [*Sub]) -10/Mines -10/Exiles -9/Mines -8/Materials (discovered 2 exits: [*Fac] / Gar) -8/Garrison (discovered 3 exits: [*Mat x3]) History --------- Turn | Location | Event 4 | -11/Scrapyard | Discovered new exit (range 15) 54 | -11/Scrapyard | Entered Materials 202 | -10/Materials | Discovered new exit (range 15) 305 | -10/Materials | Build established: Mutant 338 | -10/Materials | Discovered new exit (range 7) 563 | -10/Materials | Discovered new exit (range 9) 993 | -10/Materials | Discovered new exit (range 4) 1058 | -10/Materials | Discovered new exit (range 10) 1121 | -10/Materials | Entered Mines 1167 | -10/Mines | Deemed a non-threat by the Exiles lab entrance 1167 | -10/Mines | Discovered new exit (range 5) 1172 | -10/Mines | Entered Exiles 1207 | -10/Exiles | Met 8R-AWN 1225 | -10/Exiles | Met EX-HEX 1266 | -10/Exiles | Met EX-BIN 1280 | -10/Exiles | Aligned with FarCom system 1282 | -10/Exiles | Given EX-Vault access code 1309 | -10/Exiles | Opened EX-Vault 1315 | -10/Exiles | Found Prototype Slashing Weapon 1316 | -10/Exiles | Identified Longsword +1 1339 | -10/Exiles | Warned to stay clear of 0b10 Research branches 1361 | -10/Exiles | Exiles lab attacked by MAIN.C 1419 | -10/Exiles | Discovered new exit (range 10) 1431 | -10/Exiles | Left Exiles lab with Longsword +1 1431 | -10/Exiles | Entered Mines 1442 | -9/Mines | Escorted by a lone wolf Derelict 1462 | -9/Mines | Learned location of Storage (-7) 1508 | -9/Mines | Excavation squad dispatched 1508 | -9/Mines | A large section of the Mines collapsed 1642 | -9/Mines | Destroyed 8 combat bots 1674 | -9/Mines | Learned Materials garrison access intel 1727 | -9/Mines | Build established: Assassin 2019 | -9/Mines | Discovered new exit (range 5) 2041 | -9/Mines | Entered Materials 2041 | -8/Materials | Accompanied by 1 ally 2041 | -8/Materials | Evolved 4 slots: Propulsion x1, Utility x2, Weapon x1 2042 | -8/Materials | Loaded intel: 1 garrison access location 2302 | -8/Materials | Repaired Lgt. Armor Plating 2405 | -8/Materials | Build established: Scavenger-Assassin 2806 | -8/Materials | Discovered new exit (range 7) 3998 | -8/Materials | Repaired Lgt. Angular Momentum Engine 4116 | -8/Materials | Identified exit to Garrison 4118 | -8/Materials | Entered Garrison 4156 | -8/Garrison | Triggered checkpoint 4218 | -8/Garrison | Garrison Relay disabled 4448 | -8/Garrison | Triggered checkpoint 4606 | -8/Garrison | Triggered checkpoint 4615 | -8/Garrison | Triggered checkpoint 4615 | -8/Garrison | Triggered checkpoint 4900 | -8/Garrison | Build established: Scavenger-Mutant 4953 | -8/Garrison | Spotted B-75 Beast 4953 | -8/Garrison | Spotted B-75 Beast 5017 | -8/Garrison | Discovered new exit (range 10) 5060 | -8/Garrison | Garrison Relay disabled 5090 | -8/Garrison | Garrison Relay disabled 5120 | -8/Garrison | Triggered checkpoint 5238 | -8/Garrison | Triggered checkpoint 5299 | -8/Garrison | Garrison Relay disabled 5486 | -8/Garrison | Installed Relay Interface Framework 5814 | -8/Garrison | Triggered checkpoint 5829 | -8/Garrison | Garrison Relay disabled 5979 | -8/Garrison | Discovered new exit (range 13) 6229 | -8/Garrison | Discovered new exit (range 12) 6238 | -8/Garrison | Discovered new exit (range 70) 6238 | -8/Garrison | Discovered new exit (range 97) 6238 | -8/Garrison | Discovered new exit (range 13) 6290 | -8/Garrison | Triggered checkpoint 6339 | -8/Garrison | Garrison Relay disabled 6473 | -8/Garrison | Core integrity fell below 50% 6520 | -8/Garrison | Lost 3 parts (2p1w) 6530 | -8/Garrison | Core integrity fell below 20% 6539 | -8/Garrison | Destroyed B-75 Beast 6569 | -8/Garrison | Lost 5 parts (2n2u1w) 6570 | -8/Garrison | Destroyed by B-75 Beast with Heavy Plasma Cannon Last Messages --------------- Lgt. Angular Momentum Engine destroyed. B-75 Beast IFF system glitched. ALERT: Garrison interior compromised. Carbon-fiber Leg destroyed. B-75 Beast Imp. Medium Treads severed. B-75 Beast Lyr. Medium Armor Plating severed. Carbon-fiber Leg destroyed. B-75 Beast Imp. Medium Treads severed. Knocked back. Relay Coupler [Sentry] destroyed. Core Analyzer destroyed. Critical hit (Blast). Destroyed Imp. Medium Treads. Particle Gun destroyed. B-75 Beast destroyed. Acquired Imp. Medium Treads. Acquired Lyr. Medium Armor Plating. Acquired Hvy. Plasma Cannon. Acquired Coolant Injector. Acquired 53 matter. Map ----- +----------------------------------------------------+ | ??????????#""""!######### ####!! "#?##### = +! | | ??????????## !!! " " " """#?# =%* % +! | | ???????????######## ##### #########?# ### + | | ??????????????????# #???# #?????????# #?### +# | | ????????#####?????# #???# #?????????# #???#% ## | | ????????# #?????#+#???# #?????????# #???# #? | | ????????# < #######!#####"###########"#####"+## | | ????????# *%[ # | | ????????# ![ # | | ????????# # | | ????????#######+#############"+###### #####=! # | | ??????????????# #???????????# #????# #???#%* # | | ??????????????# #???????????# #????# #####=/=# | | ??????????????# #???????????# #????# ## "%[%# | | ??????????#####+######??????# #????#^## ##*=!# | | ??######### #??????# #?####^##+## # | | ??####[[ !# % ######## #?#]]# #!!## # | | ??#!!#[[ !# BB + #?#]]# #!!## # | | ??#!!### ## BB + #?# + + ## # | | ??# # ######## #?#!!# #]]## # | | ??#]]# # #??????# #?#!!# #]]## # | | ??#### + #??????# #?#+## #####^^^# | | ??#!!# # #??????# %### ## ##??# # | | ??# # ######## %% #" "#??# # | | ??#!!### ## ^; = %###### ##??# # | | ??#!!#[[ ]# ;@ % % ###### ##### | | ??####[[ ]# ######## !*!! / | | ??######### #??????# ! !%!! | | ??????????###++++++###??????#########+##### # | | ???????????# #???????????????# ##### # | | ???????????# #???????????????# + ! | | ???????????##########???????????????#####[![ | | ????????????????????????????????????????#[[!= | | ????????????????????????????????????????#%* = | | ????????????????????????????????????????###= # | | ????????????????????????????????########### # | | ????????????????????????????????# | | ????????????????????????????????# | | ????????????????????????????????# ###"#### | | ????????????????????????????????# #?# #??## # | | ????????????????????????????????# #?# #???# # | | ????????????????????????????????# #?# #???# # | | ????????????????????????????????# ### ##### # | | ????????????????????????????????# ## " T | | ????????????????????????????????# ## ###### # | | ???????????????????????########## ##+###### # | | ???????????????????????# =!%= # | | ???????????????????????# !%[ # | | ???????????????????????# ### ### ###"######"## | | ???????????????????????# ## ^## #?# #????# #? | +----------------------------------------------------+ Best States ------------- Heat Dissipation 45 Coolant Potential 65 Energy Generation 18 Energy Capacity 250 Matter Stores 300 Matter Capacity 300 Sight Range 16 Terrain Scan Range 14 Terrain Scan Density 10 Armor Coverage 225 Resistance: KI 20 Resistance: TH 20 Resistance: EX 20 Resistance: EM 20 Resistance: I 20 Resistance: S 20 Resistance: P 20 Evasion (%) 55 Melee Accuracy 5 Core Analysis 6 Recoil Reduction 3 Offensive Hacking 10 Relay Coupler Types 1 Relay Coupler Value 28 Item Schematics ----------------- None Robot Schematics ------------------ None Fabricated ------------ Nothing Repaired ---------- Lgt. Armor Plating | 48% | -8/Materials Lgt. Angular Momentum Engine | 10% | -8/Materials Studied --------- None Alien Tech Used ----------------- None Achievements -------------- Join The Dark Side Let Me Out Of Here Mindtrick Sixth Sense Challenges ------------ None Game ------ Seed AssemblyMakeshiftPropulsion Manual? 0 Play Time 00:46:33 Cumulative 47.2 hours Start 2026.02.15 @ 15:10:13 End 2026.02.15 @ 15:58:25 Sessions 1 Manual Loads 0 Difficulty Adventurer Special Mode None Game No. 51 Rogue 0 Adventurer 51 Explorer 0 Win Type - Total 0 Types 0/0/0/0/0/0/0/0/0/0 Lore% 16 Gallery% 31 Achievement% 25 Wizard Run 0 Options --------- Layout 1 ASCII 0 Keyboard 0 Movement Mouse Keybinds 0 Fullscreen 1 Font 24/Smallcaps Map View 50x35 Zoom Use 0% Tactical HUD 0 Map Filters NONE Filters NONE Steam 1 RUN: 4612b1e3-0335-4d92-bf29-d6d43d7719bc